bitfinex/quotes_SOLUSD_20260203
["timestamp","ask_amount","ask_price","bid_price","bid_amount"]
[1770142927996,25.39731842,98.436,98.248,5.36086188]
[1770142927997,12.49557135,98.39,98.33,12.49557135]
[1770142928294,19.58,98.491,98.37,12.49557135]
[1770142928295,1.58166675,98.429,98.37,12.49557135]
[1770142928443,12.49557135,98.41,98.36,12.49557135]
[1770142928650,12.49557135,98.39,98.283,4.27527085]
[1770142928852,12.49557135,98.38,98.33,12.49557135]
[1770142929069,12.49557135,98.39,98.35,12.49557135]
[1770142929273,1.68791185,98.398,98.35,12.49557135]
[1770142929274,12.49557135,98.4,98.35,12.49557135]
[1770142929455,12.49557135,98.4,98.331,2.74375266]
[1770142929456,1.68791185,98.433,98.37,12.49557135]
[1770142929646,81.20507262,98.517,98.308,4.27527085]
[1770142929647,4.27527085,98.438,98.348,2.74375266]
[1770142929854,12.49557135,98.39,98.35,12.49557135]
[1770142930170,1.79293663,98.413,98.36,12.49557135]
[1770142930370,0.2,98.47,98.37,12.49557135]
[1770142930371,12.49557135,98.41,98.37,12.49557135]
[1770142930555,0.2,98.47,98.38,12.49557135]
[1770142930759,1.89675509,98.469,98.41,12.49557135]
[1770142931071,0.2,98.47,98.41,12.49557135]
[1770142931072,1.89675509,98.459,98.41,12.49557135]
[1770142931253,1.89675509,98.459,98.4,12.49557135]
[1770142931454,12.49557135,98.41,98.354,2.74375266]
[1770142931666,1.89675509,98.421,98.36,12.49557135]
[1770142931667,12.49557135,98.4,98.36,12.49557135]
[1770142931871,12.49557135,98.4,98.354,2.74375266]
[1770142932073,12.49557135,98.42,98.354,2.74375266]
[1770142932382,1.99938109,98.469,98.374,2.74375266]
[1770142932555,1.99938109,98.469,98.355,5.36086188]
[1770142932556,1.99938109,98.469,98.41,12.49557135]
[1770142932871,2.10100545,98.469,98.381,2.74375266]
[1770142933071,0.2,98.47,98.381,2.74375266]
[1770142933072,12.49557135,98.43,98.39,12.49557135]
[1770142933276,2.10100545,98.469,98.41,12.49557135]
[1770142933475,0.2,98.47,98.45,12.49557135]
[1770142933681,0.2,98.47,98.44,12.49557135]
[1770142933850,2.20146255,98.449,98.374,2.74375266]
[1770142934069,12.49557135,98.43,98.39,12.49557135]
[1770142934577,2.20146255,98.446,98.39,12.49557135]
[1770142934796,12.49557135,98.43,98.391,2.74375266]
[1770142935390,2.3007658,98.46,98.391,2.74375266]
[1770142935590,2.3007658,98.469,98.41,12.49557135]
[1770142935803,0.2,98.47,98.39,12.49557135]
[1770142935804,12.49557135,98.43,98.39,12.49557135]
[1770142936096,0.2,98.47,98.421,2.74375266]
[1770142936270,12.69557135,98.47,98.421,2.74375266]
[1770142936468,0.2,98.47,98.44,12.49557135]
[1770142936672,12.69557135,98.47,98.421,2.74375266]
[1770142936890,12.69557135,98.47,98.43,12.49557135]
[1770142937188,0.2,98.54,98.45,12.49557135]
[1770142937395,12.69557135,98.54,98.42,12.49557135]
[1770142937572,0.2,98.54,98.421,5.36086188]
[1770142937773,2.59188423,98.539,98.423,5.36086188]
[1770142937977,5.30618656,98.616,98.53,12.49557135]
[1770142938307,12.49557135,98.58,98.54,12.49557135]
[1770142938469,2.59188423,98.572,98.5,12.49557135]
[1770142938665,12.49557135,98.54,98.5,12.49557135]
[1770142938870,2.59188423,98.556,98.5,12.49557135]
[1770142939098,2.67409004,98.63,98.55,12.49557135]
[1770142939390,2.67409004,98.613,98.57,12.49557135]
[1770142939596,2.67409004,98.613,98.58,12.49557135]
[1770142939885,12.49557135,98.62,98.523,5.36086188]
[1770142940187,12.49557135,98.61,98.56,12.49557135]
[1770142940370,12.49557135,98.61,98.491,50.30864887]
[1770142940371,2.8730861,98.594,98.54,12.49557135]
[1770142940571,3.3835875,98.65,98.58,12.49557135]
[1770142940778,3.2751765,98.649,98.59,12.49557135]
[1770142940975,0.2,98.65,98.64,12.49557135]
[1770142941275,3.6751765,98.744,98.641,5.36086188]
[1770142941479,3.80061981,98.779,98.647,4.09140288]
[1770142941678,3.80061981,98.759,98.7,12.49557135]
[1770142941892,5.29578649,98.826,98.677,4.09140288]
[1770142941893,12.49557135,98.72,98.677,4.09140288]
[1770142942082,12.49557135,98.71,98.659,4.09140288]
[1770142942286,12.49557135,98.71,98.66,12.49557135]
[1770142942482,12.49557135,98.71,98.599,10.14205264]
[1770142942483,12.49557135,98.68,98.64,12.49557135]
[1770142942707,12.49557135,98.67,98.62,12.49557135]
[1770142943187,12.49557135,98.65,98.6,16.58697423]
[1770142943390,3.80061981,98.667,98.61,12.49557135]
[1770142943587,3.80061981,98.667,98.536,50.24315404]
[1770142943588,3.80061981,98.725,98.66,12.49557135]
[1770142943893,3.80061981,98.792,98.711,4.09140288]
[1770142944093,3.80061981,98.792,98.74,12.49557135]
[1770142944275,12.49557135,98.78,98.715,4.09140288]
[1770142944474,12.49557135,98.75,98.696,4.09140288]
[1770142944804,3.80061981,98.76,98.691,4.09140288]
[1770142945098,12.49557135,98.75,98.701,4.09140288]
[1770142945300,16.29619116,98.76,98.71,12.49557135]
[1770142945599,12.49557135,98.78,98.73,12.49557135]
[1770142945798,12.49557135,98.8,98.731,4.09140288]
[1770142945998,33.51401793,98.868,98.731,4.09140288]
[1770142945999,12.49557135,98.78,98.731,4.09140288]
[1770142946317,12.49557135,98.78,98.663,50.75279299]
[1770142946318,3.80061981,98.792,98.72,12.49557135]
[1770142946478,12.49557135,98.78,98.74,12.49557135]
[1770142946678,3.80061981,98.811,98.74,12.49557135]
[1770142946995,12.49557135,98.86,98.785,4.09140288]
[1770142947195,28.22,98.937,98.815,4.09140288]
[1770142947196,12.49557135,98.88,98.815,4.09140288]
[1770142947402,12.49557135,98.88,98.83,12.49557135]
[1770142947582,12.49557135,98.85,98.795,4.09140288]
[1770142947783,3.80061981,98.819,98.716,4.27527085]
[1770142947979,4.27527085,98.727,98.676,4.09140288]
[1770142948279,12.49557135,98.71,98.66,12.49557135]
[1770142948482,3.68773759,98.749,98.68,12.49557135]
[1770142948700,12.49557135,98.73,98.68,12.49557135]
[1770142948904,12.49557135,98.7,98.578,50.12514731]
[1770142949115,12.49557135,98.71,98.67,12.49557135]
[1770142949416,12.49557135,98.72,98.68,12.49557135]
[1770142949613,12.49557135,98.72,98.67,12.49557135]
[1770142950002,12.49557135,98.7,98.65,12.49557135]
[1770142950308,12.49557135,98.69,98.651,4.09140288]
[1770142950515,28.22,98.776,98.63,4.09140288]
[1770142950516,12.33487686,98.67,98.63,4.09140288]
[1770142950715,3.80061981,98.693,98.611,4.09140288]
[1770142950891,12.33487686,98.66,98.621,4.09140288]
[1770142951097,3.80061981,98.693,98.621,4.09140288]
[1770142951400,12.33487686,98.65,98.621,4.09140288]
[1770142951718,12.33487686,98.66,98.62,12.33487686]
[1770142951913,12.33487686,98.67,98.63,12.33487686]
[1770142952219,12.33487686,98.67,98.621,4.09140288]
[1770142952513,12.33487686,98.67,98.63,12.33487686]
[1770142952899,12.33487686,98.67,98.621,4.09140288]
[1770142952900,3.80061981,98.659,98.566,53.8196959]
[1770142953108,12.33487686,98.58,98.543,4.09140288]
[1770142953314,3.80061981,98.598,98.521,4.09140288]
[1770142953496,3.80061981,98.654,98.521,4.09140288]
[1770142953696,12.33487686,98.59,98.541,4.09140288]
[1770142953900,3.80061981,98.614,98.551,4.09140288]
[1770142954115,12.33487686,98.61,98.561,4.09140288]
[1770142954405,12.33487686,98.6,98.561,4.09140288]
[1770142954621,12.33487686,98.59,98.54,12.33487686]
[1770142954915,12.33487686,98.57,98.536,4.09140288]
[1770142955117,3.80061981,98.609,98.55,12.33487686]
[1770142955309,12.33487686,98.59,98.55,12.33487686]
[1770142955500,3.80061981,98.609,98.55,12.33487686]
[1770142955811,3.80061981,98.609,98.536,4.09140288]
[1770142956014,12.33487686,98.58,98.54,12.33487686]
[1770142956212,3.80061981,98.609,98.55,12.33487686]
[1770142956398,12.33487686,98.59,98.544,4.09140288]
[1770142956593,12.33487686,98.57,98.53,12.33487686]
[1770142956794,4.27527085,98.61,98.51,12.33487686]
[1770142956795,4.27527085,98.59,98.51,12.33487686]
[1770142956993,12.33487686,98.56,98.511,4.09140288]
[1770142957191,12.33487686,98.57,98.521,4.09140288]
[1770142957595,3.80061981,98.569,98.5,4.09140288]
[1770142957813,12.33487686,98.55,98.5,4.09140288]
[1770142958014,12.33487686,98.53,98.5,4.09140288]
[1770142958195,12.33487686,98.53,98.44,10.15840972]
[1770142958196,3.80061981,98.552,98.49,12.53487686]
[1770142958399,12.33487686,98.56,98.52,12.33487686]
[1770142958597,3.80061981,98.578,98.511,4.09140288]
[1770142958810,12.33487686,98.56,98.52,12.33487686]
[1770142959212,12.33487686,98.57,98.53,12.33487686]
[1770142959413,4.27527085,98.58,98.496,5.36086188]
[1770142959414,3.80061981,98.559,98.496,5.36086188]
[1770142959624,3.76261361,98.539,98.432,4.09140288]
[1770142959804,12.33487686,98.48,98.432,4.09140288]
[1770142960005,4.27527085,98.506,98.432,4.09140288]
[1770142960219,12.33487686,98.5,98.451,4.09140288]
[1770142960401,5.36086188,98.574,98.379,50.06664479]
[1770142960402,3.72498747,98.59,98.491,4.09140288]
[1770142960615,12.33487686,98.53,98.48,12.33487686]
[1770142960815,12.33487686,98.53,98.396,40.65197514]
[1770142960816,12.33487686,98.52,98.47,12.33487686]
[1770142961223,12.33487686,98.51,98.46,12.33487686]
[1770142961414,3.80061981,98.51,98.4,50.01056051]
[1770142961732,12.33487686,98.5,98.45,12.33487686]
[1770142961917,16.13549667,98.51,98.419,10.16053826]
[1770142962121,12.33487686,98.51,98.46,12.33487686]
[1770142962305,12.33487686,98.52,98.47,12.33487686]
[1770142962707,12.33487686,98.52,98.404,4.27527085]
[1770142962708,12.33487686,98.53,98.481,4.09140288]
[1770142963710,12.33487686,98.52,98.481,4.09140288]
[1770142964216,12.33487686,98.53,98.481,4.09140288]
[1770142964415,12.33487686,98.53,98.42,4.27527085]
[1770142964416,3.80061981,98.489,98.402,4.09140288]
[1770142964618,4.27527085,98.505,98.421,4.09140288]
[1770142964823,12.33487686,98.49,98.441,4.09140288]
[1770142965124,12.33487686,98.5,98.45,12.33487686]
[1770142965507,12.33487686,98.49,98.451,4.09140288]
[1770142965910,4.27527085,98.507,98.46,16.42627974]
[1770142966141,4.27527085,98.507,98.39,50.86054269]
[1770142966142,3.80061981,98.506,98.371,4.09140288]
[1770142966309,12.33487686,98.48,98.431,4.09140288]
[1770142966508,12.33487686,98.49,98.44,12.33487686]
[1770142966711,4.27527085,98.497,98.45,12.33487686]
[1770142967213,4.27527085,98.507,98.46,12.33487686]
[1770142967601,3.80061981,98.565,98.48,12.33487686]
[1770142967806,3.80061981,98.549,98.443,4.27527085]
[1770142968008,3.80061981,98.521,98.451,4.09140288]
[1770142968231,12.33487686,98.51,98.46,12.33487686]
[1770142968523,12.33487686,98.52,98.46,4.09140288]
[1770142968722,12.33487686,98.52,98.46,16.42627974]
[1770142968929,12.33487686,98.5,98.44,16.42627974]
[1770142969115,12.33487686,98.49,98.44,16.42627974]
[1770142969315,3.80061981,98.502,98.44,16.42627974]
[1770142969511,3.80061981,98.53,98.441,4.09140288]
[1770142969713,12.33487686,98.49,98.456,4.09140288]
[1770142970014,12.33487686,98.56,98.394,25.40783191]
[1770142970015,3.80061981,98.51,98.43,12.33487686]
[1770142970225,3.80061981,98.51,98.441,4.09140288]
[1770142970729,12.33487686,98.49,98.431,4.38969171]
[1770142970931,12.33487686,98.48,98.431,4.38969171]
[1770142971122,12.33487686,98.49,98.431,4.38969171]
[1770142971307,12.33487686,98.5,98.441,4.38969171]
[1770142971632,12.33487686,98.51,98.451,4.38969171]
[1770142971840,12.33487686,98.51,98.411,10.16141903]
[1770142971841,12.33487686,98.52,98.47,12.33487686]
[1770142972012,4.27527085,98.531,98.461,4.38969171]
[1770142972013,12.33487686,98.51,98.461,4.38969171]
[1770142972208,12.33487686,98.5,98.461,4.38969171]
[1770142972511,4.27527085,98.521,98.461,4.38969171]
[1770142972715,28.22,98.552,98.391,4.38969171]
[1770142972716,4.08209937,98.52,98.391,4.38969171]
[1770142972914,12.33487686,98.43,98.391,4.38969171]
[1770142973323,4.08209937,98.469,98.411,4.38969171]
[1770142973524,40.56857666,98.599,98.43,12.33487686]
[1770142973525,12.33487686,98.48,98.43,12.33487686]
[1770142973919,12.33487686,98.49,98.441,4.19890888]
[1770142974126,12.33487686,98.47,98.422,4.19890888]
[1770142975030,12.33487686,98.47,98.369,4.27527085]
[1770142975031,4.31379503,98.466,98.365,4.19890888]
[1770142975216,12.33487686,98.43,98.381,4.19890888]
[1770142975830,12.33487686,98.41,98.351,4.19890888]
[1770142976030,12.33487686,98.4,98.351,4.19890888]
[1770142976412,12.33487686,98.38,98.335,4.19890888]
[1770142977037,12.33487686,98.39,98.34,12.33487686]
[1770142977214,12.33487686,98.4,98.35,16.73378574]
[1770142977415,28.22,98.454,98.35,16.73378574]
[1770142977416,12.33487686,98.41,98.361,4.19890888]
[1770142977614,4.31379503,98.399,98.35,0.2]
[1770142977833,12.33487686,98.39,98.35,0.2]
[1770142978029,12.33487686,98.38,98.35,0.2]
[1770142978340,4.27527085,98.414,98.291,0.3105014]
[1770142978341,2.22633039,98.386,98.291,0.3105014]
[1770142978522,40.63219858,98.445,98.292,4.19890888]
[1770142978523,12.33487686,98.32,98.292,4.19890888]
[1770142978832,4.27527085,98.344,98.291,0.3105014]
[1770142978833,4.31379503,98.342,98.291,0.3105014]
[1770142979037,12.33487686,98.34,98.291,4.50941028]
[1770142979436,10.1609569,98.416,98.291,4.50941028]
[1770142979437,4.31379503,98.366,98.311,4.19890888]
[1770142979734,12.33487686,98.36,98.311,4.19890888]
[1770142980126,12.33487686,98.35,98.311,4.19890888]
[1770142980322,4.31379503,98.366,98.301,4.19890888]
[1770142980526,10.15963939,98.429,98.291,0.3105014]
[1770142980527,4.31379503,98.404,98.331,4.19890888]
[1770142980843,12.33487686,98.38,98.331,4.19890888]
[1770142981155,12.33487686,98.41,98.34,4.19890888]
[1770142981640,4.31379503,98.421,98.34,4.19890888]
[1770142981941,12.33487686,98.43,98.38,12.33487686]
[1770142982138,12.33487686,98.42,98.37,12.33487686]
[1770142982531,4.31379503,98.399,98.34,4.19890888]
[1770142982715,4.31379503,98.399,98.35,12.33487686]
[1770142982920,12.33487686,98.42,98.37,12.33487686]
[1770142983138,12.33487686,98.42,98.304,5.36086188]
[1770142983139,4.31379503,98.419,98.351,4.19890888]
[1770142983331,4.31379503,98.419,98.36,12.33487686]
[1770142983544,4.27527085,98.417,98.37,12.33487686]
[1770142983727,12.33487686,98.43,98.38,12.33487686]
[1770142983915,12.33487686,98.43,98.371,4.19890888]
[1770142984139,12.33487686,98.41,98.351,4.19890888]
[1770142984335,12.33487686,98.4,98.351,4.19890888]
[1770142984843,12.33487686,98.39,98.351,4.19890888]
[1770142985338,12.33487686,98.41,98.361,4.19890888]
[1770142985539,12.33487686,98.43,98.381,4.19890888]
[1770142985837,12.33487686,98.42,98.381,4.19890888]
[1770142986026,12.33487686,98.43,98.381,4.19890888]
[1770142986436,25.37801259,98.511,98.314,5.36086188]
[1770142986437,4.31379503,98.426,98.351,4.19890888]
[1770142986739,12.33487686,98.42,98.361,4.19890888]
[1770142986928,12.33487686,98.42,98.37,12.33487686]
[1770142987241,12.33487686,98.42,98.371,4.19890888]
[1770142987738,4.31379503,98.426,98.371,4.19890888]
[1770142988138,12.33487686,98.43,98.381,4.19890888]
[1770142988352,12.33487686,98.44,98.39,16.53378574]
[1770142988725,4.27527085,98.407,98.332,4.19890888]
[1770142989032,5.36086188,98.468,98.361,4.19890888]
[1770142989033,4.31379503,98.423,98.361,4.19890888]
[1770142989224,12.33487686,98.42,98.361,4.19890888]
[1770142989427,12.33487686,98.44,98.391,4.19890888]
[1770142989840,12.33487686,98.41,98.373,4.19890888]
[1770142990045,12.33487686,98.4,98.373,4.19890888]
[1770142990261,12.33487686,98.4,98.351,4.19890888]
[1770142990748,12.33487686,98.41,98.36,12.33487686]
[1770142990948,12.33487686,98.44,98.391,4.19890888]
[1770142991151,4.31379503,98.459,98.401,4.19890888]
[1770142991152,12.33487686,98.45,98.401,4.19890888]
[1770142991534,4.31379503,98.459,98.41,12.33487686]
[1770142992149,12.33487686,98.45,98.401,4.19890888]
[1770142992349,12.33487686,98.48,98.421,4.19890888]
[1770142992653,12.33487686,98.49,98.44,12.33487686]
[1770142992948,30.58,98.549,98.377,4.27527085]
[1770142992949,12.33487686,98.5,98.45,16.53378574]
[1770142993142,12.33487686,98.46,98.43,4.19890888]
[1770142993343,12.33487686,98.47,98.42,12.33487686]
[1770142993534,12.33487686,98.47,98.415,4.19890888]
[1770142993535,12.33487686,98.46,98.415,4.19890888]
[1770142994142,12.33487686,98.45,98.415,4.19890888]
[1770142994452,12.33487686,98.46,98.415,4.19890888]
[1770142994644,12.33487686,98.48,98.431,4.19890888]
[1770142995351,12.33487686,98.5,98.441,4.19890888]
[1770142995537,12.33487686,98.5,98.45,12.33487686]
[1770142995737,12.33487686,98.48,98.431,4.19890888]
[1770142995930,12.33487686,98.47,98.431,4.19890888]
[1770142996434,4.31379503,98.466,98.416,4.19890888]
[1770142996631,12.33487686,98.47,98.421,4.19890888]
[1770142997357,4.31379503,98.489,98.43,12.33487686]
[1770142997358,12.33487686,98.48,98.43,12.33487686]
[1770142997769,12.33487686,98.47,98.421,4.19890888]
[1770142998337,12.33487686,98.46,98.421,4.19890888]
[1770142998756,4.31379503,98.474,98.421,4.19890888]
[1770142998950,12.33487686,98.47,98.421,4.19890888]
[1770142999537,12.33487686,98.46,98.421,4.19890888]
[1770143000556,12.33487686,98.44,98.391,4.13586338]
[1770143000742,16.6355506,98.46,98.411,4.13586338]
[1770143001357,4.30067374,98.46,98.411,4.13586338]
[1770143001944,4.30067374,98.46,98.42,16.47074024]
[1770143002143,12.33487686,98.47,98.42,16.47074024]
[1770143002645,4.30067374,98.478,98.431,4.13586338]
[1770143002962,4.30067374,98.478,98.37,25.41399487]
[1770143002963,12.33487686,98.45,98.411,4.13586338]
[1770143003149,12.33487686,98.46,98.411,4.13586338]
[1770143003348,4.30067374,98.449,98.396,4.13586338]
[1770143003558,16.6355506,98.42,98.365,4.13586338]
[1770143003858,4.30067374,98.42,98.381,4.13586338]
[1770143004066,4.30067374,98.42,98.39,12.33487686]
[1770143004243,4.30067374,98.42,98.391,4.13586338]
[1770143004440,16.6355506,98.42,98.371,4.13586338]
[1770143005166,4.30067374,98.42,98.371,4.13586338]
[1770143005364,16.6355506,98.42,98.371,4.13586338]
[1770143006067,4.27527085,98.446,98.323,4.13586338]
[1770143006068,12.33487686,98.39,98.323,4.13586338]
[1770143006258,12.33487686,98.4,98.351,4.13586338]
[1770143006563,4.30067374,98.425,98.371,4.13586338]
[1770143006768,12.33487686,98.42,98.371,4.13586338]
[1770143006944,12.33487686,98.4,98.354,4.13586338]
[1770143007145,4.30067374,98.399,98.341,4.13586338]
[1770143007468,12.33487686,98.39,98.341,4.13586338]
[1770143008271,4.30067374,98.389,98.321,4.13586338]
[1770143008466,12.33487686,98.4,98.351,4.13586338]
[1770143008651,12.33487686,98.39,98.351,4.13586338]
[1770143008968,12.33487686,98.38,98.335,4.13586338]
[1770143009176,4.30067374,98.393,98.341,4.13586338]
[1770143009177,12.33487686,98.39,98.341,4.13586338]
[1770143009561,12.33487686,98.37,98.341,4.13586338]
[1770143009880,12.33487686,98.37,98.327,4.13586338]
[1770143010374,12.33487686,98.36,98.327,4.13586338]
[1770143010777,12.33487686,98.37,98.321,4.13586338]
[1770143010963,5.36086188,98.423,98.321,4.13586338]
[1770143010964,4.30067374,98.369,98.321,4.13586338]
[1770143011886,12.33487686,98.37,98.321,4.13586338]
[1770143012374,12.41290987,98.37,98.321,4.13586338]
[1770143013558,4.30067374,98.383,98.321,4.13586338]
[1770143013559,12.41290987,98.36,98.321,4.13586338]
[1770143013764,12.41290987,98.37,98.321,4.13586338]
[1770143014403,10.15845734,98.441,98.292,50.92837913]
[1770143014404,7.57901348,98.39,98.341,4.13586338]
[1770143014582,7.57901348,98.39,98.294,4.27527085]
[1770143014583,4.30067374,98.399,98.332,4.13586338]
[1770143014768,7.57901348,98.39,98.332,4.13586338]
[1770143015077,4.30067374,98.399,98.294,4.27527085]
[1770143015078,7.57901348,98.37,98.321,4.13586338]
[1770143015486,7.57901348,98.38,98.321,4.13586338]
[1770143015862,4.30067374,98.399,98.331,4.13586338]
[1770143016081,4.30067374,98.399,98.351,4.13586338]
[1770143016281,4.30067374,98.399,98.38,7.57901348]
[1770143016480,4.30067374,98.399,98.354,4.13586338]
[1770143017193,7.97091813,98.46,98.306,50.00957872]
[1770143017194,4.30067374,98.426,98.38,7.57901348]
[1770143017563,4.30067374,98.426,98.381,4.13586338]
[1770143017969,4.30067374,98.426,98.371,4.13586338]
[1770143018170,4.30067374,98.426,98.332,25.42387949]
[1770143018171,4.30067374,98.426,98.381,4.13586338]
[1770143018486,7.57901348,98.44,98.391,4.13586338]
[1770143019488,4.30067374,98.444,98.4,7.57901348]
[1770143019989,11.87968722,98.43,98.377,4.13586338]
[1770143020307,11.87968722,98.43,98.39,7.57901348]
[1770143020308,4.30067374,98.43,98.39,7.57901348]
[1770143020677,4.30067374,98.444,98.4,7.57901348]
[1770143021073,4.30067374,98.439,98.391,4.13586338]
[1770143021390,4.30067374,98.453,98.391,4.13586338]
[1770143021576,4.30067374,98.466,98.42,7.57901348]
[1770143023192,4.30067374,98.466,98.411,4.13586338]
[1770143023490,4.30067374,98.459,98.411,4.13586338]
[1770143023881,4.30067374,98.479,98.43,7.57901348]
[1770143024693,4.30067374,98.479,98.44,7.57901348]
[1770143025193,4.30067374,98.479,98.371,4.13586338]
[1770143025400,7.57901348,98.44,98.391,4.13586338]
[1770143025582,4.30067374,98.439,98.391,4.13586338]
[1770143025778,4.30067374,98.429,98.376,4.13586338]
[1770143025980,4.30067374,98.449,98.4,4.13586338]
[1770143026182,7.57901348,98.44,98.4,4.13586338]
[1770143026403,4.30067374,98.439,98.39,7.57901348]
[1770143027080,4.30067374,98.439,98.356,10.16704593]
[1770143027298,4.30067374,98.439,98.39,7.57901348]
[1770143027696,4.30067374,98.429,98.38,7.57901348]
[1770143027999,7.57901348,98.44,98.39,7.57901348]
[1770143028299,4.30067374,98.443,98.39,7.57901348]
[1770143028478,4.30067374,98.439,98.391,4.13586338]
[1770143029780,4.30067374,98.439,98.376,4.13586338]
[1770143029985,4.30067374,98.429,98.39,7.57901348]
[1770143030187,4.30067374,98.442,98.4,7.57901348]
[1770143030484,50.00045844,98.546,98.322,90.70460966]
[1770143030485,4.32951894,98.469,98.42,7.57901348]
[1770143030899,4.32951894,98.469,98.43,7.57901348]
[1770143031106,4.32951894,98.499,98.44,7.57901348]
[1770143031301,4.32951894,98.499,98.47,7.57901348]
[1770143031509,4.32951894,98.499,98.44,7.57901348]
[1770143031802,28.24,98.561,98.436,4.49627104]
[1770143031803,4.32951894,98.479,98.436,4.49627104]
[1770143032101,5.36086188,98.525,98.373,4.27527085]
[1770143032102,4.32951894,98.469,98.423,4.49627104]
[1770143032399,4.32951894,98.469,98.368,25.41461159]
[1770143032400,7.57901348,98.44,98.391,4.49627104]
[1770143032598,4.32951894,98.439,98.391,4.49627104]
[1770143032801,4.32951894,98.439,98.339,25.42218078]
[1770143032802,4.32951894,98.419,98.361,4.49627104]
[1770143032984,4.27527085,98.424,98.346,50.0634397]
[1770143033186,7.57901348,98.4,98.352,50.85181154]
[1770143033384,7.57901348,98.4,98.351,4.49999999]
[1770143034703,4.27527085,98.415,98.351,4.49999999]
[1770143035004,7.57901348,98.38,98.337,50.99922399]
[1770143035207,34.85527085,98.407,98.336,4.49999999]
[1770143035400,7.57901348,98.37,98.336,4.49999999]
[1770143035905,7.57901348,98.36,98.319,4.49999999]
[1770143036405,4.27527085,98.392,98.325,4.49999999]
[1770143036583,28.24,98.451,98.361,4.49999999]
[1770143036788,7.57901348,98.41,98.361,4.49999999]
[1770143037105,7.57901348,98.4,98.361,4.49999999]
[1770143037607,7.57901348,98.4,98.351,4.49999999]
[1770143038003,7.57901348,98.41,98.361,4.49999999]
[1770143038304,7.57901348,98.41,98.32,7.57901348]
[1770143038305,7.57901348,98.43,98.371,4.49999999]
[1770143038492,7.57901348,98.42,98.371,4.49999999]
[1770143039100,4.27527085,98.427,98.371,4.49999999]
[1770143039299,7.57901348,98.42,98.371,4.49999999]
[1770143040195,7.57901348,98.41,98.371,4.49999999]
[1770143040397,7.57901348,98.42,98.371,4.49999999]
[1770143040597,7.57901348,98.38,98.327,4.49999999]
[1770143040789,10.83853183,98.419,98.371,4.49999999]
[1770143040990,7.57901348,98.43,98.371,3.05800165]
[1770143041194,4.27527085,98.437,98.38,7.57901348]
[1770143041399,7.57901348,98.4,98.304,60.45450816]
[1770143041602,7.57901348,98.41,98.36,7.57901348]
[1770143042510,7.57901348,98.43,98.38,7.57901348]
[1770143042835,5.36086188,98.492,98.32,33.00602358]
[1770143042836,9.69086853,98.456,98.4,7.57901348]
[1770143043006,1.42757836,98.474,98.43,7.57901348]
[1770143043195,7.57901348,98.46,98.411,4.37767667]
[1770143043398,1.42757836,98.449,98.394,4.37767667]
[1770143043705,7.57901348,98.43,98.394,4.37767667]
[1770143043898,1.42757836,98.449,98.394,4.37767667]
[1770143043899,7.57901348,98.44,98.394,4.37767667]
[1770143044087,7.57901348,98.44,98.347,5.36086188]
[1770143044088,1.42757836,98.463,98.411,4.37767667]
[1770143044288,7.57901348,98.45,98.411,4.37767667]
[1770143044492,7.57901348,98.44,98.396,4.37767667]
[1770143044813,9.00659184,98.48,98.431,4.37767667]
[1770143044992,7.57901348,98.49,98.44,7.57901348]
[1770143045306,1.42757836,98.507,98.441,4.37767667]
[1770143045507,1.42757836,98.52,98.444,4.37767667]
[1770143045701,1.42757836,98.501,98.444,4.37767667]
[1770143045904,1.42757836,98.499,98.444,4.37767667]
[1770143046103,7.57901348,98.49,98.444,4.37767667]
[1770143046309,1.42757836,98.499,98.434,4.37767667]
[1770143046512,7.57901348,98.5,98.451,4.37767667]
[1770143046710,7.57901348,98.52,98.471,4.37767667]
[1770143047012,12.07051941,98.546,98.502,4.37767667]
[1770143047209,1.42757836,98.559,98.52,7.57901348]
[1770143047416,0.1,98.56,98.48,7.57901348]
[1770143047417,7.57901348,98.53,98.48,7.57901348]
[1770143047592,7.57901348,98.52,98.476,4.37767667]
[1770143047794,10.83853183,98.558,98.355,40.66888421]
[1770143047795,7.57901348,98.51,98.463,4.37767667]
[1770143048011,1.42757836,98.526,98.463,4.37767667]
[1770143048515,5.36086188,98.513,98.409,4.49279]
[1770143048699,7.57901348,98.45,98.409,4.49279]
[1770143048902,7.57901348,98.46,98.411,4.49279]
[1770143049215,7.57901348,98.45,98.411,4.49279]
[1770143049397,7.57901348,98.45,98.346,25.42044109]
[1770143049398,7.57901348,98.43,98.402,4.49279]
[1770143049601,7.57901348,98.44,98.402,4.49279]
[1770143050110,7.57901348,98.42,98.385,4.49279]
[1770143050325,22.90905124,98.465,98.385,4.49279]
[1770143050516,7.57901348,98.43,98.385,4.49279]
[1770143050694,7.57901348,98.43,98.32,7.57901348]
[1770143050695,7.57901348,98.44,98.391,4.49279]
[1770143050895,7.58104573,98.439,98.391,4.49279]
[1770143051099,7.57901348,98.42,98.391,4.49279]
[1770143051408,7.57901348,98.43,98.391,4.49279]
[1770143051609,7.58104573,98.439,98.391,4.49279]
[1770143051825,7.58104573,98.439,98.421,4.49279]
[1770143052205,4.09784653,98.508,98.44,4.37767667]
[1770143052820,4.09784653,98.489,98.44,7.57901348]
[1770143053009,4.09784653,98.519,98.48,7.57901348]
[1770143053319,6.44427028,98.547,98.51,7.57901348]